fUST/lending_fUST_20260117
["ID","MTS","AMOUNT","RATE_DAILY","PERIOD"]
[402352164,1768662654413,-500.0,0.00016712,3]
[402352166,1768662654423,-1160.27,0.00016712,3]
[402352168,1768662654432,-500.0,0.00016712,3]
[402352170,1768662654443,-854.92,0.00016712,3]
[402352172,1768662654454,-500.0,0.00016712,3]
[402352174,1768662654464,-500.0,0.00016712,3]
[402352176,1768662654474,-500.0,0.00016712,3]
[402352178,1768662654483,-500.0,0.00016712,3]
[402352180,1768662654492,-500.0,0.00016712,3]
[402352182,1768662654502,-500.0,0.00016712,3]
[402352184,1768662654512,-500.0,0.00016712,3]
[402352186,1768662654521,-500.0,0.00016712,3]
[402352188,1768662654531,-1186.24,0.00016712,3]
[402352190,1768662654540,-500.0,0.00016712,3]
[402352192,1768662654550,-500.0,0.00016712,3]
[402352194,1768662654559,-988.53,0.00016712,3]
[402352196,1768662654569,-500.0,0.00016712,3]
[402352197,1768662654578,-500.0,0.00016712,3]
[402352199,1768662654588,-500.0,0.00016712,3]
[402352201,1768662654597,-903.28,0.00016712,3]
[402352203,1768662654606,-751.92,0.00016712,3]
[402352204,1768662654616,-500.0,0.00016712,3]
[402352206,1768662654625,-500.0,0.00016712,3]
[402352208,1768662654635,-500.0,0.00016712,3]
[402352210,1768662654644,-500.0,0.00016712,3]
[402352212,1768662654654,-500.0,0.00016712,3]
[402352214,1768662654669,-500.0,0.00016712,3]
[402352216,1768662654678,-895.81,0.00016712,3]
[402352218,1768662654687,-500.0,0.00016712,3]
[402352220,1768662654696,-1728.12,0.00016712,3]
[402352222,1768662654706,-1227.62,0.00016712,3]
[402352224,1768662654715,-1394.65,0.00016712,3]
[402352226,1768662654725,-500.0,0.00016712,3]
[402352228,1768662654735,-500.0,0.00016712,3]
[402352230,1768662654744,-500.0,0.00016712,3]
[402352232,1768662654754,-500.0,0.00016712,3]
[402352234,1768662654763,-500.0,0.00016712,3]
[402352235,1768662654774,-1454.87,0.00016712,3]
[402352237,1768662654784,-500.0,0.00016712,3]
[402352239,1768662654794,-1181.71,0.00016712,3]
[402352241,1768662654803,-1377.08,0.00016712,3]
[402352243,1768662654812,-500.0,0.00016712,3]
[402352245,1768662654821,-623.41,0.00016712,3]
[402352247,1768662654830,-953.25120035,0.00016712,2]
[402352249,1768662654839,-500.0,0.00016712,3]
[402352251,1768662654848,-1270.86,0.00016712,3]
[402352253,1768662654857,-500.0,0.00016712,3]
[402352255,1768662654866,-500.0,0.00016712,3]
[402352257,1768662654876,-1163.58,0.00016712,3]
[402352259,1768662654885,-500.0,0.00016712,3]
[402352261,1768662654895,-500.0,0.00016712,3]
[402352263,1768662654904,-547.09236024,0.00016712,3]
[402352265,1768662654914,-784.81,0.00016712,3]
[402352267,1768662654923,-500.0,0.00016712,3]
[402352268,1768662654934,-500.0,0.00016712,3]
[402352270,1768662654945,-500.0,0.00016712,3]
[402352272,1768662654955,-500.0,0.00016712,3]
[402352274,1768662654965,-754.58,0.00016712,3]
[402352276,1768662654976,-676.61,0.00016712,3]
[402352278,1768662654986,-500.0,0.00016712,3]
[402352280,1768662654996,-1049.01,0.00016712,3]
[402352282,1768662655006,-500.0,0.00016712,3]
[402352284,1768662655017,-1161.42,0.00016712,3]
[402352286,1768662655026,-735.13,0.00016712,3]
[402352288,1768662655036,-500.0,0.00016712,3]
[402352290,1768662655046,-972.23,0.00016712,3]
[402352292,1768662655056,-500.0,0.00016712,3]
[402352294,1768662655066,-500.0,0.00016712,3]
[402352296,1768662655075,-500.0,0.00016712,3]
[402352298,1768662655085,-412.6225604,0.00016712,3]
[402352299,1768662655094,-500.0,0.00016712,3]
[402352301,1768662655103,-1232.8,0.00016712,3]
[402352303,1768662655114,-500.0,0.00016712,2]
[402352305,1768662655124,-500.0,0.00016712,3]
[402352307,1768662655133,-1818.79,0.00016712,3]
[402352309,1768662655143,-804.18,0.00016712,3]
[402352311,1768662655152,-1333.82,0.00016712,3]
[402352313,1768662655171,-500.0,0.00016712,2]
[402352315,1768662655182,-500.0,0.00016712,3]
[402352317,1768662655201,-500.0,0.00016712,3]
[402352319,1768662655211,-500.0,0.00016712,3]
[402352321,1768662655221,-500.0,0.00016712,3]
[402352323,1768662655230,-719.75,0.00016712,3]
[402352325,1768662655239,-512.66871378,0.00016712,3]
[402352327,1768662655248,-1699.73,0.00016712,3]
[402352329,1768662655257,-500.0,0.00016712,3]
[402352331,1768662655267,-500.0,0.00016712,3]
[402352333,1768662655276,-500.0,0.00016712,3]
[402352334,1768662655285,-500.0,0.00016712,3]
[402352336,1768662655295,-500.0,0.00016712,3]
[402352338,1768662655307,-500.0,0.00016712,3]
[402352340,1768662655324,-2882.98,0.00016712,3]
[402352342,1768662655333,-500.0,0.00016712,3]
[402352344,1768662655345,-311.24128532,0.00016712,3]
[402352346,1768662655354,-500.0,0.00016712,3]
[402352348,1768662655363,-529.6,0.00016712,3]
[402352350,1768662655373,-500.0,0.00016712,3]
[402352351,1768662655384,-500.0,0.00016712,2]
[402352353,1768662655394,-250.0,0.00016884,2]
[402352355,1768662655403,-500.0,0.00016986,3]
[402352357,1768662655413,-500.0,0.00016986,3]
[402352359,1768662655422,-188.42277333,0.00016986,3]
[402352361,1768662655431,-500.0,0.00016986,3]
[402352363,1768662655440,-522.82,0.00016986,3]
[402352365,1768662655449,-500.0,0.00016986,3]
[402352367,1768662655458,-943.68399769,0.00016986,3]
[402352369,1768662655468,-674.48,0.00016986,3]
[402352371,1768662655478,-712.93,0.00016986,3]
[402352373,1768662655488,-500.0,0.00016986,3]
[402352375,1768662655498,-500.0,0.00016986,3]
[402352377,1768662655507,-500.0,0.00016986,3]
[402352379,1768662655517,-658.11,0.00016986,3]
[402352380,1768662655526,-500.0,0.00016986,3]
[402352382,1768662655536,-500.0,0.00016986,3]
[402352384,1768662655545,-500.0,0.00016986,3]
[402352386,1768662655555,-500.0,0.00016986,3]
[402352388,1768662655565,-500.0,0.00016986,3]
[402352390,1768662655575,-500.0,0.00016986,3]
[402352392,1768662655585,-500.0,0.00016986,3]
[402352394,1768662655594,-1398.34,0.00016986,3]
[402352396,1768662655604,-500.0,0.00016986,3]
[402352398,1768662655613,-500.0,0.00016986,3]
[402352400,1768662655622,-500.0,0.00016986,3]
[402352402,1768662655631,-562.7811494,0.00016986,3]
[402352404,1768662655641,-500.0,0.00016986,3]
[402352406,1768662655650,-500.0,0.00016986,3]
[402352408,1768662655659,-500.0,0.00016986,3]
[402352410,1768662655668,-500.0,0.00016986,3]
[402352412,1768662655676,-500.0,0.00016986,3]
[402352414,1768662655686,-721.9,0.00016986,3]
[402352416,1768662655698,-500.0,0.00016986,3]
[402352418,1768662655707,-500.0,0.00016986,3]
[402352420,1768662655715,-500.0,0.00016986,3]
[402352422,1768662655724,-1688.97,0.00016986,3]
[402352424,1768662655733,-500.0,0.00016986,3]
[402352425,1768662655741,-639.25,0.00016986,3]
[402352427,1768662655750,-605.39,0.00016986,3]
[402352429,1768662655759,-500.0,0.00016986,3]
[402352430,1768662655771,-784.74,0.00016986,3]
[402352431,1768662655779,-500.0,0.00016986,3]
[402352432,1768662655789,-500.0,0.00016986,3]
[402352433,1768662655798,-500.0,0.00016986,3]
[402352434,1768662655807,-1333.2,0.00016986,3]
[402352435,1768662655816,-805.67,0.00016986,3]
[402352436,1768662655825,-500.0,0.00016986,3]
[402352437,1768662655834,-616.4,0.00016986,3]
[402352438,1768662655844,-500.0,0.00016986,3]
[402352439,1768662655853,-306.16209203,0.00016986,3]
[402352440,1768662655862,-757.48,0.00016986,3]
[402352441,1768662655871,-500.0,0.00016986,3]
[402352442,1768662655880,-769.36,0.00016986,3]
[402352443,1768662655889,-500.0,0.00016986,3]
[402352444,1768662655898,-500.0,0.00016986,3]
[402352446,1768662655907,-500.0,0.00016986,3]
[402352447,1768662655916,-710.33,0.00016986,3]
[402352449,1768662655926,-1000.0,0.00016986,2]
[402352451,1768662655935,-519.74,0.00016986,3]
[402352453,1768662655945,-500.0,0.00016986,3]
[402352455,1768662655954,-500.0,0.00016986,3]
[402352457,1768662655963,-500.0,0.00016986,3]
[402352459,1768662655972,-581.95,0.00016986,3]
[402352461,1768662655981,-500.0,0.00016986,3]
[402352463,1768662655991,-500.0,0.00016986,3]
[402352465,1768662656000,-500.0,0.00016986,3]
[402352467,1768662656010,-500.0,0.00016986,3]
[402352469,1768662656020,-500.0,0.00016986,3]
[402352471,1768662656029,-500.0,0.00016986,3]
[402352473,1768662656039,-500.0,0.00016986,3]
[402352475,1768662656048,-1144.02,0.00016986,3]
[402352477,1768662656058,-500.0,0.00016986,3]
[402352479,1768662656069,-500.0,0.00016986,3]
[402352481,1768662656078,-557.15103403,0.00016986,3]
[402352483,1768662656088,-500.0,0.00016986,3]
[402352485,1768662656097,-1210.08,0.00016986,3]
[402352487,1768662656108,-500.0,0.00016986,3]
[402352489,1768662656118,-767.93,0.00016986,3]
[402352491,1768662656128,-500.0,0.00016986,3]
[402352493,1768662656137,-500.0,0.00016986,3]
[402352495,1768662656147,-1252.08,0.00016986,3]
[402352498,1768662656163,-500.0,0.00016986,3]
[402352500,1768662656173,-500.0,0.00016986,3]
[402352502,1768662656183,-539.72,0.00016986,3]
[402352504,1768662656193,-500.0,0.00016986,3]
[402352506,1768662656203,-500.0,0.00016986,3]
[402352508,1768662656212,-500.0,0.00016986,3]
[402352510,1768662656222,-500.0,0.00016986,3]
[402352512,1768662656231,-500.0,0.00016986,3]
[402352514,1768662656242,-500.0,0.00016986,3]
[402352516,1768662656252,-635.41,0.00016986,3]
[402352518,1768662656261,-500.0,0.00016986,3]
[402352520,1768662656271,-500.0,0.00016986,3]
[402352523,1768662656281,-500.0,0.00016986,3]
[402352524,1768662656292,-656.3,0.00016986,3]
[402352527,1768662656304,-684.28,0.00016986,3]
[402352529,1768662656314,-500.0,0.00016986,3]
[402352530,1768662656323,-1037.47,0.00016986,3]
[402352533,1768662656333,-819.66,0.00016986,3]
[402352535,1768662656343,-934.4,0.00016986,3]
[402352537,1768662656353,-523.18,0.00016986,3]
[402352539,1768662656363,-1011.5,0.00016986,3]
[402352541,1768662656373,-500.0,0.00016986,3]
[402352542,1768662656383,-804.95,0.00016986,3]
[402352544,1768662656392,-1082.98,0.00016986,3]
[402352547,1768662656402,-500.0,0.00016986,3]
[402352549,1768662656412,-500.0,0.00016986,3]
[402352550,1768662656422,-500.0,0.00016986,3]
[402352553,1768662656432,-534.26411861,0.00016986,3]
[402352555,1768662656441,-500.0,0.00016986,3]
[402352557,1768662656451,-500.0,0.00016986,3]
[402352559,1768662656461,-500.0,0.00016986,3]
[402352561,1768662656471,-896.32,0.00016986,3]
[402352563,1768662656481,-968.07,0.00016986,3]
[402352565,1768662656490,-947.44,0.00016986,3]
[402352567,1768662656500,-682.17,0.00016986,3]
[402352569,1768662656510,-500.0,0.00016986,3]
[402352571,1768662656520,-951.54,0.00016986,3]
[402352573,1768662656529,-500.0,0.00016986,3]
[402352575,1768662656539,-500.0,0.00016986,3]
[402352577,1768662656549,-500.0,0.00016986,3]
[402352579,1768662656559,-500.0,0.00016986,3]
[402352582,1768662656570,-500.0,0.00016986,3]
[402352584,1768662656579,-175.73098182,0.00016986,3]
[402352586,1768662656589,-562.49,0.00016986,3]
[402352588,1768662656598,-1404.85,0.00016986,3]
[402352590,1768662656608,-817.58,0.00016986,3]
[402352592,1768662656618,-1645.85,0.00016986,3]
[402352594,1768662656627,-500.0,0.00016986,3]
[402352596,1768662656639,-549.4,0.00016986,3]
[402352598,1768662656648,-500.0,0.00016986,3]
[402352600,1768662656658,-533.54,0.00016986,3]
[402352602,1768662656669,-500.0,0.00016986,3]
[402352604,1768662656679,-310.90446794,0.00016986,3]
[402352606,1768662656689,-500.0,0.00016986,3]
[402352608,1768662656699,-500.0,0.00016986,3]
[402352610,1768662656708,-500.0,0.00016986,3]
[402352612,1768662656718,-722.31,0.00016986,3]
[402352614,1768662656727,-500.0,0.00016986,3]
[402352616,1768662656737,-592.18,0.00016986,3]
[402352618,1768662656748,-592.71890736,0.00016986,3]
[402352620,1768662656758,-1425.78,0.00016986,3]
[402352623,1768662656769,-591.98,0.00016986,3]
[402352625,1768662656779,-500.0,0.00016986,3]
[402352627,1768662656789,-500.0,0.00016986,3]
[402352629,1768662656800,-500.0,0.00016986,3]
[402352631,1768662656810,-500.0,0.00016986,3]
[402352633,1768662656820,-1160.19,0.00016986,3]
[402352635,1768662656830,-500.0,0.00016986,3]
[402352637,1768662656840,-500.0,0.00016986,3]
[402352639,1768662656850,-500.0,0.00016986,3]
[402352641,1768662656861,-535.55,0.00016986,3]
[402352644,1768662656871,-500.0,0.00016986,3]
[402352646,1768662656881,-1001.78,0.00016986,3]
[402352648,1768662656890,-1529.77,0.00016986,3]
[402352650,1768662656900,-284.7821744,0.00016986,3]
[402352652,1768662656909,-500.0,0.00016986,3]
[402352654,1768662656923,-740.59,0.00016986,3]
[402352656,1768662656943,-1142.36,0.00016986,3]
[402352658,1768662656955,-1352.19,0.00016986,3]
[402352660,1768662656965,-635.21,0.00016986,3]
[402352662,1768662656975,-500.0,0.00016986,3]
[402352664,1768662656985,-622.56,0.00016986,3]
[402352666,1768662656995,-500.0,0.00016986,3]
[402352668,1768662657006,-500.0,0.00016986,3]
[402352670,1768662657020,-500.0,0.00016986,3]
[402352672,1768662657035,-500.0,0.00016986,3]
[402352675,1768662657046,-500.0,0.00016986,3]
[402352677,1768662657056,-500.0,0.00016986,3]
[402352679,1768662657066,-500.0,0.00016986,3]
[402352681,1768662657077,-500.0,0.00016986,3]
[402352683,1768662657088,-715.3,0.00016986,3]
[402352685,1768662657098,-788.35,0.00016986,3]
[402352687,1768662657109,-596.43,0.00016986,3]
[402352689,1768662657119,-500.0,0.00016986,3]
[402352691,1768662657129,-500.0,0.00016986,3]
[402352693,1768662657139,-500.0,0.00016986,3]
[402352695,1768662657149,-619.62,0.00016986,3]
[402352697,1768662657159,-1050.88,0.00016986,3]
[402352700,1768662657169,-736.98,0.00016986,3]
[402352702,1768662657179,-1158.67,0.00016986,3]
[402352704,1768662657188,-500.0,0.00016986,3]
[402352706,1768662657198,-500.0,0.00016986,3]
[402352708,1768662657208,-234.44653758,0.00016986,3]
[402352710,1768662657218,-817.41,0.00016986,3]
[402352712,1768662657227,-500.0,0.00016986,3]
[402352714,1768662657237,-500.0,0.00016986,3]
[402352716,1768662657248,-750.38,0.00016986,3]
[402352718,1768662657258,-500.0,0.00016986,3]
[402352720,1768662657268,-1156.52,0.00016986,3]
[402352722,1768662657278,-500.0,0.00016986,3]
[402352724,1768662657288,-500.0,0.00016986,3]
[402352726,1768662657300,-500.0,0.00016986,3]
[402352728,1768662657312,-500.0,0.00016986,3]
[402352731,1768662657321,-659.54,0.00016986,3]
[402352733,1768662657331,-500.0,0.00016986,3]
[402352735,1768662657343,-500.0,0.00016986,3]
[402352737,1768662657353,-500.0,0.00016986,3]
[402352739,1768662657363,-500.0,0.00016986,3]
[402352741,1768662657374,-155.57377074,0.00016986,3]
[402352743,1768662657384,-684.72,0.00016986,3]
[402352745,1768662657393,-500.0,0.00016986,3]
[402352747,1768662657405,-533.41,0.00016986,3]
[402352749,1768662657414,-1901.49,0.00016986,3]
[402352751,1768662657424,-500.0,0.00016986,3]
[402352753,1768662657434,-870.38,0.00016986,3]
[402352755,1768662657444,-500.0,0.00016986,3]
[402352757,1768662657454,-500.0,0.00016986,3]
[402352759,1768662657465,-663.84,0.00016986,3]
[402352761,1768662657475,-500.0,0.00016986,3]
[402352763,1768662657485,-500.0,0.00016986,3]
[402352765,1768662657496,-500.0,0.00016986,3]
[402352767,1768662657507,-500.0,0.00016986,3]
[402352769,1768662657516,-500.0,0.00016986,3]
[402352772,1768662657526,-500.0,0.00016986,3]
[402352774,1768662657537,-500.0,0.00016986,3]
[402352776,1768662657548,-500.0,0.00016986,3]
[402352778,1768662657560,-897.0,0.00016986,3]
[402352780,1768662657569,-500.0,0.00016986,3]
[402352782,1768662657579,-500.0,0.00016986,3]
[402352784,1768662657589,-500.0,0.00016986,3]
[402352786,1768662657600,-500.0,0.00016986,3]
[402352788,1768662657609,-500.0,0.00016986,3]
[402352790,1768662657620,-1113.89,0.00016986,3]
[402352792,1768662657631,-1200.48,0.00016986,3]
[402352794,1768662657641,-685.11,0.00016986,3]
[402352796,1768662657651,-500.0,0.00016986,3]
[402352798,1768662657661,-793.38,0.00016986,3]
[402352800,1768662657671,-500.0,0.00016986,3]
[402352803,1768662657681,-500.0,0.00016986,3]
[402352805,1768662657694,-541.3847786,0.00016986,3]
[402352807,1768662657704,-500.0,0.00016986,3]
[402352809,1768662657714,-857.35,0.00016986,3]
[402352811,1768662657724,-500.0,0.00016986,3]
[402352813,1768662657736,-500.0,0.00016986,3]
[402352815,1768662657746,-500.0,0.00016986,3]
[402352817,1768662657756,-503.37,0.00016986,3]
[402352820,1768662657767,-500.0,0.00016986,3]
[402352822,1768662657777,-500.0,0.00016986,3]
[402352824,1768662657787,-1412.04,0.00016986,3]
[402352826,1768662657797,-500.0,0.00016986,3]
[402352828,1768662657807,-500.0,0.00016986,3]
[402352830,1768662657817,-712.76,0.00016986,3]
[402352832,1768662657827,-1182.04,0.00016986,3]
[402352834,1768662657837,-500.0,0.00016986,3]
[402352836,1768662657847,-500.0,0.00016986,3]
[402352838,1768662657857,-1599.91,0.00016986,3]
[402352840,1768662657867,-1003.59,0.00016986,3]
[402352842,1768662657877,-2072.09,0.00016986,3]
[402352844,1768662657887,-561.39,0.00016986,3]
[402352846,1768662657897,-500.0,0.00016986,3]
[402352849,1768662657907,-500.0,0.00016986,3]
[402352851,1768662657921,-500.0,0.00016986,3]
[402352853,1768662657931,-500.0,0.00016986,3]
[402352855,1768662657941,-500.0,0.00016986,3]
[402352857,1768662657952,-1057.27,0.00016986,3]
[402352859,1768662657962,-500.0,0.00016986,3]
[402352861,1768662657973,-500.0,0.00016986,3]
[402352863,1768662657983,-1617.77,0.00016986,3]
[402352865,1768662657993,-500.0,0.00016986,3]
[402352867,1768662658003,-656.57,0.00016986,3]
[402352869,1768662658013,-500.0,0.00016986,3]
[402352871,1768662658025,-500.0,0.00016986,3]
[402352874,1768662658035,-500.0,0.00016986,3]
[402352876,1768662658045,-504.38,0.00016986,3]
[402352878,1768662658057,-500.0,0.00016986,3]
[402352880,1768662658069,-500.0,0.00016986,3]
[402352882,1768662658079,-957.3,0.00016986,3]
[402352884,1768662658090,-1012.72,0.00016986,3]
[402352886,1768662658100,-500.0,0.00016986,3]
[402352888,1768662658110,-500.0,0.00016986,3]
[402352890,1768662658120,-500.0,0.00016986,3]
[402352892,1768662658131,-500.0,0.00016986,3]
[402352894,1768662658141,-651.52,0.00016986,3]
[402352896,1768662658151,-500.0,0.00016986,3]
[402352899,1768662658162,-500.0,0.00016986,3]
[402352901,1768662658172,-500.0,0.00016986,3]
[402352903,1768662658182,-500.0,0.00016986,3]
[402352905,1768662658193,-500.0,0.00016986,3]
[402352906,1768662658203,-500.0,0.00016986,3]
[402352909,1768662658213,-734.21,0.00016986,3]
[402352911,1768662658223,-760.44,0.00016986,3]
[402352913,1768662658233,-999.9,0.00016986,3]
[402352915,1768662658242,-500.0,0.00016986,3]
[402352917,1768662658255,-500.0,0.00016986,3]
[402352919,1768662658264,-1040.65,0.00016986,3]
[402352921,1768662658274,-500.0,0.00016986,3]
[402352923,1768662658284,-624.82,0.00016986,3]
[402352925,1768662658294,-500.0,0.00016986,3]
[402352927,1768662658308,-1263.45,0.00016986,3]
[402352929,1768662658318,-1230.06,0.00016986,3]
[402352931,1768662658328,-500.0,0.00016986,3]
[402352933,1768662658339,-500.0,0.00016986,3]
[402352935,1768662658349,-500.0,0.00016986,3]
[402352937,1768662658359,-500.0,0.00016986,3]
[402352939,1768662658370,-730.99,0.00016986,3]
[402352941,1768662658380,-586.02,0.00016986,3]
[402352944,1768662658390,-1196.23,0.00016986,3]
[402352946,1768662658399,-500.0,0.00016986,3]
[402352948,1768662658409,-500.0,0.00016986,3]
[402352950,1768662658419,-500.0,0.00016986,3]
[402352952,1768662658430,-625.1,0.00016986,3]
[402352954,1768662658440,-1714.13,0.00016986,3]
[402352956,1768662658450,-1269.7,0.00016986,3]
[402352958,1768662658460,-500.0,0.00016986,3]
[402352960,1768662658470,-500.0,0.00016986,3]
[402352962,1768662658480,-500.0,0.00016986,3]
[402352964,1768662658490,-551.17,0.00016986,3]
[402352966,1768662658500,-500.0,0.00016986,3]
[402352968,1768662658509,-500.0,0.00016986,3]
[402352970,1768662658519,-500.0,0.00016986,3]
[402352972,1768662658531,-500.0,0.00016986,3]
[402352974,1768662658540,-500.0,0.00016986,3]
[402352976,1768662658550,-500.0,0.00016986,3]
[402352978,1768662658560,-1204.33,0.00016986,3]
[402352980,1768662658570,-470.6383794,0.00016986,3]
[402352983,1768662658580,-500.0,0.00016986,3]
[402352985,1768662658590,-1449.71,0.00016986,3]
[402352987,1768662658600,-500.0,0.00016986,3]
[402352989,1768662658610,-500.0,0.00016986,3]
[402352991,1768662658619,-500.0,0.00016986,3]
[402352993,1768662658629,-584.16,0.00016986,3]
[402352995,1768662658639,-1029.72,0.00016986,3]
[402352997,1768662658648,-1183.16,0.00016986,3]
[402352999,1768662658658,-500.0,0.00016986,3]
[402353001,1768662658668,-500.0,0.00016986,3]
[402353003,1768662658678,-789.18,0.00016986,3]
[402353039,1768662659000,-1423.83,0.00016986,3]
[402353041,1768662659012,-500.0,0.00016986,3]
[402353044,1768662659021,-500.0,0.00016986,3]
[402353046,1768662659031,-705.5,0.00016986,3]
[402353048,1768662659042,-500.0,0.00016986,3]
[402353050,1768662659051,-504.13,0.00016986,3]
[402353052,1768662659062,-500.0,0.00016986,3]
[402353053,1768662659071,-614.27,0.00016986,3]
[402353055,1768662659079,-536.59,0.00016986,3]
[402353058,1768662659090,-578.87,0.00016986,3]
[402353060,1768662659099,-500.0,0.00016986,3]
[402353062,1768662659110,-500.0,0.00016986,3]
[402353064,1768662659120,-500.0,0.00016986,3]
[402353066,1768662659129,-885.93,0.00016986,3]
[402353068,1768662659139,-500.0,0.00016986,3]
[402353070,1768662659149,-672.46,0.00016986,3]
[402353072,1768662659159,-1250.85,0.00016986,3]
[402353074,1768662659169,-500.0,0.00016986,3]
[402353076,1768662659179,-515.94,0.00016986,3]
[402353078,1768662659189,-912.07,0.00016986,3]
[402353080,1768662659198,-564.9,0.00016986,3]
[402353082,1768662659207,-500.0,0.00016986,3]
[402353084,1768662659217,-500.0,0.00016986,3]
[402353086,1768662659227,-500.0,0.00016986,3]
[402353088,1768662659237,-500.0,0.00016986,3]
[402353089,1768662659247,-500.0,0.00016986,3]
[402353092,1768662659256,-570.91,0.00016986,3]
[402353093,1768662659266,-500.0,0.00016986,3]
[402353095,1768662659275,-1309.8,0.00016986,3]
[402353098,1768662659285,-500.0,0.00016986,3]
[402353099,1768662659295,-500.0,0.00016986,3]
[402353102,1768662659308,-4921.67,0.00016986,3]
[402353104,1768662659317,-500.0,0.00016986,3]
[402353106,1768662659326,-500.0,0.00016986,3]
[402353107,1768662659336,-974.68,0.00016986,3]
[402353110,1768662659347,-500.0,0.00016986,3]
[402353112,1768662659356,-500.0,0.00016986,3]
[402353114,1768662659365,-1662.79,0.00016986,3]
[402353116,1768662659374,-573.27,0.00016986,3]
[402353117,1768662659384,-1168.69,0.00016986,3]
[402353120,1768662659394,-1382.58,0.00016986,3]
[402353122,1768662659403,-500.0,0.00016986,3]
[402353123,1768662659412,-500.0,0.00016986,3]
[402353126,1768662659424,-500.0,0.00016986,3]
[402353128,1768662659433,-500.0,0.00016986,3]
[402353130,1768662659442,-316.32438621,0.00016986,3]
[402353131,1768662659451,-993.02,0.00016986,3]
[402353133,1768662659461,-857.01,0.00016986,3]
[402353136,1768662659470,-757.99,0.00016986,3]
[402353138,1768662659480,-753.75,0.00016986,3]
[402353140,1768662659489,-682.33,0.00016986,3]
[402353142,1768662659499,-795.42,0.00016986,3]
[402353144,1768662659508,-869.85,0.00016986,3]
[402353145,1768662659517,-743.96,0.00016986,3]
[402353148,1768662659527,-1207.22,0.00016986,3]
[402353150,1768662659537,-500.0,0.00016986,3]
[402353152,1768662659547,-1288.64,0.00016986,3]
[402353154,1768662659556,-346.63907245,0.00016986,3]
[402353155,1768662659565,-842.31,0.00016986,3]
[402353158,1768662659575,-1146.93,0.00016986,3]
[402353159,1768662659584,-500.0,0.00016986,3]
[402353162,1768662659594,-500.0,0.00016986,3]
[402353163,1768662659603,-500.0,0.00016986,3]
[402353166,1768662659613,-500.0,0.00016986,3]
[402353168,1768662659623,-1674.49,0.00016986,3]
[402353170,1768662659633,-500.0,0.00016986,3]
[402353172,1768662659642,-1522.27,0.00016986,3]
[402353174,1768662659654,-500.0,0.00016986,3]
[402353175,1768662659663,-500.0,0.00016986,3]
[402353177,1768662659673,-614.82090661,0.00016986,3]
[402353179,1768662659686,-500.0,0.00016986,3]
[402353182,1768662659695,-500.0,0.00016986,3]
[402353183,1768662659704,-500.0,0.00016986,3]
[402353186,1768662659714,-524.59,0.00016986,3]
[402353187,1768662659723,-1097.93,0.00016986,3]